[Event "Mitropa Cup Open 2019"]
[Site "Radenci"]
[Date "2019.06.02"]
[Round "7.19"]
[White "Janzelj, Tim"]
[Black "Mesaros, Florian"]
[Result "1-0"]
[ECO "A09"]
[WhiteElo "2384"]
[BlackElo "2439"]
[Annotator "ChessBase"]
[PlyCount "91"]
[EventDate "2019.05.27"]
[EventType "team-tourn"]
[EventCountry "SLO"]
[SourceTitle "playchess.com"]
[Source "ChessBase"]
[SourceQuality "1"]
[WhiteTeam "SLO"]
[BlackTeam "AUT"]
[BlackTeamCountry "AUT"]
[TimeControl "40/5400+30:1800+30"]

1. Nf3 {[%emt 0:00:00]} d5 {[%emt 0:00:00]} 2. c4 {[%emt 0:00:00]} dxc4 {[%emt 0:00:00]} 3. Na3 {[%emt 0:00:14]} g6 {[%emt 0:00:01]} 4. g3 {[%emt 0:01:08]} Bg7 {[%emt 0:00:07]} 5. Bg2 {[%emt 0:00:11]} e5 {[%emt 0:00:30]} 6. Qc2 {[%emt 0:01:29]} Bf5 {[%emt 0:08:05]} 7. e4 {[%emt 0:06:44]} Bg4 {[%emt 0:01:50]} 8. Nxc4 {[%emt 0:02:00]} Nc6 {[%emt 0:00:29]} 9. O-O {[%emt 0:01:01]} Nge7 {[%emt 0:03:04]} 10. b3 {[%emt 0:01:29]} Bxf3 {[%emt 0:07:10]} 11. Bxf3 {[%emt 0:00:03]} Nd4 {[%emt 0:00:13]} 12. Qd1 {[%emt 0:00:50]} O-O {[%emt 0:00:45]} 13. Bg2 {[%emt 0:00:44]} Qd7 {[%emt 0:07:40]} 14. Bb2 {[%emt 0:01:18]} Rad8 {[%emt 0:05:22]} 15. Rc1 {[%emt 0:07:58]} Nec6 {[%emt 0:00:47]} 16. Ne3 {[%emt 0:01:48]} Ne6 {[%emt 0:16:14]} 17. Nd5 {[%emt 0:14:12]} Ncd4 {[%emt 0:00:21]} 18. f4 {[%emt 0:14:12]} c6 {[%emt 0:05:27]} 19. fxe5 {[%emt 0:03:00]} cxd5 {[%emt 0:03:27]} 20. exd5 {[%emt 0:00:02]} Bxe5 {[%emt 0:01:05]} 21. dxe6 {[%emt 0:00:28]} Qxe6 {[%emt 0:01:11]} 22. Re1 {[%emt 0:06:44]} Rfe8 {[%emt 0:04:45]} 23. Kh1 {[%emt 0:00:56]} h5 {[%emt 0:05:13]} 24. Rc5 {[%emt 0:08:25]} Qf6 {[%emt 0:06:26]} 25. Re4 {[%emt 0:09:07]} Nc6 {[%emt 0:03:56]} 26. Qe1 {[%emt 0:02:47]} Bxb2 {[%emt 0:10:15]} 27. Rxe8+ {[%emt 0:00:09]} Rxe8 {[%emt 0:00:03]} 28. Qxe8+ {[%emt 0:00:07]} Kg7 {[%emt 0:00:04]} 29. Qe1 {[%emt 0:00:38]} Ne5 {[%emt 0:00:50]} 30. Qf1 {[%emt 0:01:55]} Qb6 {[%emt 0:00:18]} 31. Rb5 {[%emt 0:01:21]} Qe6 {[%emt 0:04:43]} 32. Rxb7 {[%emt 0:04:14]} Ng4 {[%emt 0:01:55]} 33. Rb4 {[%emt 0:07:23]} Be5 {[%emt 0:01:25]} 34. Bf3 {[%emt 0:01:40]} Qd6 {[%emt 0:01:39]} 35. Re4 {[%emt 0:00:28]} f5 {[%emt 0:01:18]} 36. Re2 {[%emt 0:00:28]} Bd4 {[%emt 0:00:43]} 37. Bxg4 {[%emt 0:01:36]} hxg4 {[%emt 0:00:02]} 38. Qg2 {[%emt 0:00:12]} Qa6 {[%emt 0:01:02]} 39. Re1 {[%emt 0:01:43]} Qxa2 {[%emt 0:00:23]} 40. Qb7+ {[%emt 0:00:00]} Kh6 {[%emt 0:00:00]} 41. Qb4 {[%emt 0:00:40]} Bf6 {[%emt 0:05:33]} 42. Qf4+ {[%emt 0:07:10]} Bg5 {[%emt 0:09:32]} 43. Qd4 {[%emt 0:05:11]} Kh5 {[%emt 0:01:43]} 44. Re8 {[%emt 0:01:18]} Qxb3 {[%emt 0:04:19]} 45. Rh8+ {[%emt 0:00:11]} Bh6 {[%emt 0:00:04]} 46. Rxh6+ {[%emt 0:00:09]} 1-0

[Event "Mitropa Cup Open 2019"]
[Site "Radenci"]
[Date "2019.06.02"]
[Round "7.20"]
[White "Horvath, Dominik"]
[Black "Subelj, Jan"]
[Result "1-0"]
[ECO "E04"]
[WhiteElo "2406"]
[BlackElo "2407"]
[Annotator "ChessBase"]
[PlyCount "63"]
[EventDate "2019.05.27"]
[EventType "team-tourn"]
[EventCountry "SLO"]
[SourceTitle "playchess.com"]
[Source "ChessBase"]
[SourceQuality "1"]
[WhiteTeam "Austria"]
[BlackTeam "Slovenia"]
[WhiteTeamCountry "AUT"]
[BlackTeamCountry "SLO"]
[TimeControl "40/5400+30:1800+30"]

1. d4 {[%emt 0:00:00]} Nf6 {[%emt 0:00:11]} 2. c4 {[%emt 0:00:00]} e6 {[%emt 0:00:21]} 3. g3 {[%emt 0:00:00]} d5 {[%emt 0:00:06]} 4. Bg2 {[%emt 0:00:00]} dxc4 {[%emt 0:01:11]} 5. Nf3 {[%emt 0:00:05]} Bb4+ {[%emt 0:05:37]} 6. Bd2 {[%emt 0:00:48]} a5 {[%emt 0:00:13]} 7. a3 {[%emt 0:02:21]} Bxd2+ {[%emt 0:01:41]} 8. Nbxd2 {[%emt 0:06:35]} b5 {[%emt 0:02:45]} 9. b3 {[%emt 0:00:17]} cxb3 {[%emt 0:07:08]} 10. Qxb3 {[%emt 0:00:13]} c6 {[%emt 0:06:59]} 11. O-O {[%emt 0:01:41]} O-O {[%emt 0:00:28]} 12. Rfc1 {[%emt 0:07:38]} Bb7 {[%emt 0:09:03]} 13. Qb2 {[%emt 0:00:18]} Nbd7 {[%emt 0:01:42]} 14. Ne1 {[%emt 0:08:09]} Qb6 {[%emt 0:05:23]} 15. Nd3 {[%emt 0:00:37]} Rac8 {[%emt 0:06:05]} 16. Nb3 {[%emt 0:02:05]} a4 {[%emt 0:02:20]} 17. Nbc5 {[%emt 0:02:35]} Nxc5 {[%emt 0:01:07]} 18. Nxc5 {[%emt 0:02:07]} Rfd8 {[%emt 0:00:54]} 19. e3 {[%emt 0:02:03]} Qa7 {[%emt 0:00:07]} 20. Rc2 {[%emt 0:05:37]} Ba8 {[%emt 0:01:37]} 21. Rac1 {[%emt 0:01:23]} Nd5 {[%emt 0:08:32]} 22. Nd3 {[%emt 0:07:11]} Rc7 {[%emt 0:03:06]} 23. Rc5 {[%emt 0:07:25]} Rb8 {[%emt 0:07:45]} 24. Bxd5 {[%emt 0:08:21]} exd5 {[%emt 0:00:07]} 25. Nb4 {[%emt 0:00:04]} h5 {[%emt 0:06:12]} 26. Nxd5 {[%emt 0:01:34]} Rcc8 {[%emt 0:00:08]} 27. Nb4 {[%emt 0:04:44]} h4 {[%emt 0:00:07]} 28. d5 {[%emt 0:01:31]} h3 {[%emt 0:01:29]} 29. dxc6 {[%emt 0:00:18]} Qe7 {[%emt 0:00:06]} 30. Qd4 {[%emt 0:02:18]} Qe6 {[%emt 0:03:05]} 31. c7 {[%emt 0:00:56]} Rb6 {[%emt 0:00:19]} 32. Qd8+ {[%emt 0:00:05]} 1-0

[Event "Mitropa Cup Open 2019"]
[Site "Radenci"]
[Date "2019.06.03"]
[Round "8.2"]
[White "Blohberger, Felix"]
[Black "Kozak, Adam"]
[Result "1/2-1/2"]
[ECO "C67"]
[WhiteElo "2475"]
[BlackElo "2458"]
[Annotator "ChessBase"]
[PlyCount "91"]
[EventDate "2019.05.27"]
[EventType "team-tourn"]
[EventCountry "SLO"]
[SourceTitle "playchess.com"]
[Source "ChessBase"]
[SourceQuality "1"]
[WhiteTeam "Austria"]
[BlackTeam "Hungary"]
[WhiteTeamCountry "AUT"]
[BlackTeamCountry "HUN"]
[TimeControl "40/5400+30:1800+30"]

1. e4 {[%emt 0:00:00]} e5 {[%emt 0:00:00]} 2. Nf3 {[%emt 0:00:00]} Nc6 {[%emt 0:00:00]} 3. Bb5 {[%emt 0:00:00]} Nf6 {[%emt 0:00:02]} 4. O-O {[%emt 0:00:59]} Nxe4 {[%emt 0:00:14]} 5. Re1 {[%emt 0:00:09]} Nd6 {[%emt 0:00:33]} 6. Nxe5 {[%emt 0:00:25]} Be7 {[%emt 0:00:53]} 7. Bf1 {[%emt 0:00:05]} Nxe5 {[%emt 0:01:19]} 8. Rxe5 {[%emt 0:00:04]} O-O {[%emt 0:00:09]} 9. Nc3 {[%emt 0:00:03]} Ne8 {[%emt 0:00:56]} 10. Nd5 {[%emt 0:00:06]} Bd6 {[%emt 0:00:11]} 11. Re1 {[%emt 0:00:05]} c6 {[%emt 0:00:07]} 12. Ne3 {[%emt 0:00:03]} Bc7 {[%emt 0:00:28]} 13. Nf5 {[%emt 0:00:15]} d5 {[%emt 0:00:07]} 14. Ne7+ {[%emt 0:00:03]} Kh8 {[%emt 0:00:02]} 15. Nxc8 {[%emt 0:00:05]} Rxc8 {[%emt 0:00:18]} 16. Qf3 {[%emt 0:00:50]} Qd7 {[%emt 0:04:50]} 17. d3 {[%emt 0:10:10]} Nd6 {[%emt 0:12:40]} 18. Bd2 {[%emt 0:03:28]} Rfe8 {[%emt 0:05:39]} 19. g3 {[%emt 0:01:25]} Rcd8 {[%emt 0:10:16]} 20. h4 {[%emt 0:09:30]} Kg8 {[%emt 0:05:28]} 21. h5 {[%emt 0:06:18]} h6 {[%emt 0:06:08]} 22. a4 {[%emt 0:03:38]} Ne4 {[%emt 0:22:34]} 23. dxe4 {[%emt 0:12:10]} dxe4 {[%emt 0:00:07]} 24. Rxe4 {[%emt 0:00:38]} Rxe4 {[%emt 0:01:12]} 25. Qxe4 {[%emt 0:00:18]} Qxd2 {[%emt 0:00:06]} 26. Bd3 {[%emt 0:07:45]} Bb6 {[%emt 0:01:57]} 27. Qf3 {[%emt 0:08:49]} Rd6 {[%emt 0:18:21]} 28. a5 {[%emt 0:22:51]} Rf6 {[%emt 0:01:49]} 29. axb6 {[%emt 0:00:21]} Rxf3 {[%emt 0:00:04]} 30. bxa7 {[%emt 0:00:05]} Qxf2+ {[%emt 0:00:16]} 31. Kh1 {[%emt 0:00:07]} Rxd3 {[%emt 0:04:32]} 32. a8=Q+ {[%emt 0:00:18]} Kh7 {[%emt 0:00:03]} 33. cxd3 {[%emt 0:00:16]} Qf3+ {[%emt 0:00:41]} 34. Kg1 {[%emt 0:02:33]} Qxg3+ {[%emt 0:00:57]} 35. Kf1 {[%emt 0:00:08]} Qf3+ {[%emt 0:00:30]} 36. Ke1 {[%emt 0:00:30]} Qe3+ {[%emt 0:00:04]} 37. Kd1 {[%emt 0:00:05]} Qxd3+ {[%emt 0:00:05]} 38. Kc1 {[%emt 0:00:05]} Qc4+ {[%emt 0:01:07]} 39. Kb1 {[%emt 0:00:23]} Qd3+ {[%emt 0:01:08]} 40. Ka2 {[%emt 0:00:00]} Qc4+ {[%emt 0:00:00]} 41. Ka3 {[%emt 0:04:20]} Qc5+ {[%emt 0:01:56]} 42. Ka2 {[%emt 0:00:17]} Qc4+ {[%emt 0:00:42]} 43. Kb1 {[%emt 0:00:49]} Qd3+ {[%emt 0:00:32]} 44. Kc1 {[%emt 0:00:12]} Qc4+ {[%emt 0:00:34]} 45. Kb1 {[%emt 0:01:14]} Qd3+ {[%emt 0:00:10]} 46. Ka2 {[%emt 0:00:29]} 1/2-1/2

[Event "Mitropa Cup Open 2019"]
[Site "Radenci"]
[Date "2019.06.03"]
[Round "8.3"]
[White "Csonka, Balazs"]
[Black "Mesaros, Florian"]
[Result "1-0"]
[ECO "B51"]
[WhiteElo "2466"]
[BlackElo "2439"]
[Annotator "ChessBase"]
[PlyCount "51"]
[EventDate "2019.05.27"]
[EventType "team-tourn"]
[EventCountry "SLO"]
[SourceTitle "playchess.com"]
[Source "ChessBase"]
[SourceQuality "1"]
[WhiteTeam "HUN"]
[BlackTeam "AUT"]
[BlackTeamCountry "AUT"]
[TimeControl "40/5400+30:1800+30"]

1. e4 {[%emt 0:00:00]} c5 {[%emt 0:00:01]} 2. Nf3 {[%emt 0:00:00]} d6 {[%emt 0:00:06]} 3. Bb5+ {[%emt 0:00:35]} Nd7 {[%emt 0:00:56]} 4. O-O {[%emt 0:00:47]} Ngf6 {[%emt 0:01:53]} 5. Re1 {[%emt 0:00:21]} a6 {[%emt 0:01:01]} 6. Bf1 {[%emt 0:04:42]} b5 {[%emt 0:08:15]} 7. a4 {[%emt 0:18:03]} Bb7 {[%emt 0:09:19]} 8. axb5 {[%emt 0:04:57]} axb5 {[%emt 0:00:31]} 9. Rxa8 {[%emt 0:00:06]} Qxa8 {[%emt 0:00:52]} 10. Bxb5 {[%emt 0:17:52]} Bxe4 {[%emt 0:03:32]} 11. Nc3 {[%emt 0:00:16]} Bxf3 {[%emt 0:04:31]} 12. Qxf3 {[%emt 0:01:51]} Qxf3 {[%emt 0:00:22]} 13. gxf3 {[%emt 0:00:03]} e6 {[%emt 0:16:28]} 14. d3 {[%emt 0:04:12]} h6 {[%emt 0:09:00]} 15. Bd2 {[%emt 0:11:58]} Kd8 {[%emt 0:18:07]} 16. Ra1 {[%emt 0:02:40]} Kc8 {[%emt 0:01:35]} 17. Ra7 {[%emt 0:07:32]} Ne5 {[%emt 0:02:43]} 18. Ba6+ {[%emt 0:00:38]} Kd8 {[%emt 0:00:05]} 19. Kg2 {[%emt 0:04:00]} g5 {[%emt 0:03:06]} 20. Ne4 {[%emt 0:04:08]} Nfd7 {[%emt 0:00:17]} 21. Ba5+ {[%emt 0:05:12]} Ke7 {[%emt 0:00:02]} 22. Bc7 {[%emt 0:00:11]} f5 {[%emt 0:01:00]} 23. Bxd6+ {[%emt 0:00:14]} Ke8 {[%emt 0:00:02]} 24. Nf6+ {[%emt 0:00:29]} Nxf6 {[%emt 0:00:18]} 25. Bxe5 {[%emt 0:00:04]} Be7 {[%emt 0:00:16]} 26. Ra8+ {[%emt 0:00:07]} 1-0

[Event "Mitropa Cup Open 2019"]
[Site "Radenci"]
[Date "2019.06.03"]
[Round "8.12"]
[White "Gaehwiler, Gabriel"]
[Black "Miesbauer, Jan"]
[Result "1-0"]
[ECO "E60"]
[WhiteElo "2431"]
[BlackElo "2407"]
[Annotator "ChessBase"]
[PlyCount "51"]
[EventDate "2019.05.27"]
[EventType "team-tourn"]
[EventCountry "SLO"]
[SourceTitle "playchess.com"]
[Source "ChessBase"]
[SourceQuality "1"]
[WhiteTeam "Switzerland"]
[BlackTeam "Czech Republic"]
[WhiteTeamCountry "SUI"]
[BlackTeamCountry "CZE"]
[TimeControl "40/5400+30:1800+30"]

1. d4 {[%emt 0:00:00]} Nf6 {[%emt 0:00:00]} 2. c4 {[%emt 0:00:00]} g6 {[%emt 0:00:00]} 3. g3 {[%emt 0:00:00]} Bg7 {[%emt 0:00:25]} 4. Bg2 {[%emt 0:00:00]} O-O {[%emt 0:00:48]} 5. Nf3 {[%emt 0:00:01]} d6 {[%emt 0:00:16]} 6. O-O {[%emt 0:00:25]} Nbd7 {[%emt 0:01:00]} 7. b3 {[%emt 0:11:25]} e5 {[%emt 0:00:46]} 8. Bb2 {[%emt 0:00:11]} e4 {[%emt 0:01:52]} 9. Nfd2 {[%emt 0:01:43]} Qe7 {[%emt 0:03:28]} 10. e3 {[%emt 0:13:36]} Nb6 {[%emt 0:01:01]} 11. Nc3 {[%emt 0:08:34]} Bf5 {[%emt 0:00:21]} 12. f3 {[%emt 0:01:46]} exf3 {[%emt 0:01:27]} 13. Qxf3 {[%emt 0:00:04]} Rfe8 {[%emt 0:11:04]} 14. e4 {[%emt 0:01:39]} Bg4 {[%emt 0:04:45]} 15. Qf2 {[%emt 0:12:14]} Bd7 {[%emt 0:20:14]} 16. h3 {[%emt 0:00:41]} c5 {[%emt 0:00:51]} 17. e5 {[%emt 0:10:57]} dxe5 {[%emt 0:03:27]} 18. dxe5 {[%emt 0:04:41]} Nh5 {[%emt 0:00:59]} 19. Rae1 {[%emt 0:02:47]} Bh8 {[%emt 0:07:39]} 20. g4 {[%emt 0:01:19]} Ng7 {[%emt 0:00:36]} 21. Nd5 {[%emt 0:06:47]} Nxd5 {[%emt 0:00:41]} 22. cxd5 {[%emt 0:00:02]} Rf8 {[%emt 0:01:08]} 23. Ne4 {[%emt 0:00:44]} Ne8 {[%emt 0:00:21]} 24. Nxc5 {[%emt 0:06:50]} Bb5 {[%emt 0:05:29]} 25. d6 {[%emt 0:00:25]} Qg5 {[%emt 0:00:22]} 26. Ne6 {[%emt 0:01:03]} 1-0

[Event "Mitropa Cup Open 2019"]
[Site "Radenci"]
[Date "2019.06.03"]
[Round "8.14"]
[White "Kovacevic, Blazimir"]
[Black "Sonis, Francesco"]
[Result "1-0"]
[ECO "D02"]
[WhiteElo "2456"]
[BlackElo "2475"]
[Annotator "ChessBase"]
[PlyCount "67"]
[EventDate "2019.05.27"]
[EventType "team-tourn"]
[EventCountry "SLO"]
[SourceTitle "playchess.com"]
[Source "ChessBase"]
[SourceQuality "1"]
[WhiteTeam "Croatia"]
[BlackTeam "Italy"]
[WhiteTeamCountry "CRO"]
[BlackTeamCountry "ITA"]
[TimeControl "40/5400+30:1800+30"]

1. Nf3 {[%emt 0:00:00]} d5 {[%emt 0:00:00]} 2. g3 {[%emt 0:00:00]} Nc6 {[%emt 0:00:19]} 3. d4 {[%emt 0:00:00]} Bf5 {[%emt 0:00:04]} 4. Bg2 {[%emt 0:00:47]} e6 {[%emt 0:00:04]} 5. O-O {[%emt 0:01:25]} Nf6 {[%emt 0:00:05]} 6. c4 {[%emt 0:01:53]} Bd6 {[%emt 0:04:27]} 7. Bg5 {[%emt 0:15:54]} Be7 {[%emt 0:12:11]} 8. cxd5 {[%emt 0:09:17]} exd5 {[%emt 0:04:43]} 9. Nc3 {[%emt 0:01:03]} O-O {[%emt 0:07:34]} 10. Rc1 {[%emt 0:16:01]} Ne4 {[%emt 0:10:42]} 11. Bxe7 {[%emt 0:00:42]} Nxe7 {[%emt 0:01:01]} 12. Nh4 {[%emt 0:01:55]} Nxc3 {[%emt 0:01:09]} 13. bxc3 {[%emt 0:00:17]} Be6 {[%emt 0:03:07]} 14. c4 {[%emt 0:02:30]} c6 {[%emt 0:02:09]} 15. cxd5 {[%emt 0:00:13]} Bxd5 {[%emt 0:00:24]} 16. Qa4 {[%emt 0:03:40]} Qd6 {[%emt 0:08:09]} 17. Bxd5 {[%emt 0:12:27]} Qxd5 {[%emt 0:05:47]} 18. e4 {[%emt 0:01:14]} Qd7 {[%emt 0:03:36]} 19. Rfd1 {[%emt 0:05:16]} Rfd8 {[%emt 0:03:31]} 20. Qb3 {[%emt 0:00:56]} Rab8 {[%emt 0:01:42]} 21. Nf3 {[%emt 0:02:53]} Qe8 {[%emt 0:03:21]} 22. Qb4 {[%emt 0:10:36]} f6 {[%emt 0:06:27]} 23. Qa4 {[%emt 0:05:11]} Rd7 {[%emt 0:07:18]} 24. Re1 {[%emt 0:03:20]} a6 {[%emt 0:02:05]} 25. d5 {[%emt 0:01:25]} Rbd8 {[%emt 0:05:31]} 26. Nd4 {[%emt 0:01:16]} cxd5 {[%emt 0:02:43]} 27. e5 {[%emt 0:00:35]} f5 {[%emt 0:02:12]} 28. e6 {[%emt 0:02:05]} Rd6 {[%emt 0:00:03]} 29. Qb3 {[%emt 0:00:08]} Nc6 {[%emt 0:02:07]} 30. e7 {[%emt 0:01:13]} R8d7 {[%emt 0:00:53]} 31. Nxf5 {[%emt 0:00:17]} Rf6 {[%emt 0:00:17]} 32. Qd3 {[%emt 0:00:53]} h5 {[%emt 0:01:42]} 33. Rc5 {[%emt 0:00:20]} g6 {[%emt 0:00:34]} 34. Rxd5 {[%emt 0:00:29]} 1-0

[Event "Mitropa Cup Open 2019"]
[Site "Radenci"]
[Date "2019.06.03"]
[Round "8.15"]
[White "Shytaj, Luca"]
[Black "Tica, Sven"]
[Result "1-0"]
[ECO "B19"]
[WhiteElo "2490"]
[BlackElo "2417"]
[Annotator "ChessBase"]
[PlyCount "57"]
[EventDate "2019.05.27"]
[EventType "team-tourn"]
[EventCountry "SLO"]
[SourceTitle "playchess.com"]
[Source "ChessBase"]
[SourceQuality "1"]
[WhiteTeam "ITA"]
[BlackTeam "CRO"]
[BlackTeamCountry "CRO"]
[TimeControl "40/5400+30:1800+30"]

1. e4 {[%emt 0:00:00]} c6 {[%emt 0:00:00]} 2. d4 {[%emt 0:00:00]} d5 {[%emt 0:00:00]} 3. Nc3 {[%emt 0:00:17]} dxe4 {[%emt 0:00:00]} 4. Nxe4 {[%emt 0:00:04]} Bf5 {[%emt 0:00:07]} 5. Ng3 {[%emt 0:00:28]} Bg6 {[%emt 0:00:07]} 6. h4 {[%emt 0:00:37]} h6 {[%emt 0:00:06]} 7. Nf3 {[%emt 0:00:43]} e6 {[%emt 0:00:06]} 8. h5 {[%emt 0:00:41]} Bh7 {[%emt 0:00:05]} 9. Bd3 {[%emt 0:00:25]} Bxd3 {[%emt 0:00:07]} 10. Qxd3 {[%emt 0:00:04]} Nf6 {[%emt 0:00:34]} 11. Bd2 {[%emt 0:01:14]} c5 {[%emt 0:15:09]} 12. Ne4 {[%emt 0:05:02]} Nbd7 {[%emt 0:05:20]} 13. O-O-O {[%emt 0:15:29]} Be7 {[%emt 0:08:30]} 14. Kb1 {[%emt 0:13:05]} O-O {[%emt 0:07:46]} 15. g4 {[%emt 0:06:37]} Nxg4 {[%emt 0:10:31]} 16. Qe2 {[%emt 0:01:58]} f5 {[%emt 0:10:05]} 17. Nc3 {[%emt 0:05:41]} Qb6 {[%emt 0:07:04]} 18. Ne5 {[%emt 0:03:46]} Ngxe5 {[%emt 0:02:55]} 19. dxe5 {[%emt 0:00:07]} Rad8 {[%emt 0:01:45]} 20. Bf4 {[%emt 0:03:18]} Nb8 {[%emt 0:06:42]} 21. Rdg1 {[%emt 0:02:26]} Kh8 {[%emt 0:03:29]} 22. Rg6 {[%emt 0:05:26]} Rf7 {[%emt 0:01:01]} 23. Rhg1 {[%emt 0:01:37]} Rd4 {[%emt 0:07:16]} 24. Qe3 {[%emt 0:05:12]} Bf8 {[%emt 0:01:17]} 25. Qg3 {[%emt 0:02:00]} Qb4 {[%emt 0:04:24]} 26. Rxh6+ {[%emt 0:01:23]} Kg8 {[%emt 0:00:05]} 27. Qg6 {[%emt 0:00:19]} Rfd7 {[%emt 0:00:05]} 28. Qh7+ {[%emt 0:00:36]} Kf7 {[%emt 0:00:05]} 29. Rf6+ {[%emt 0:00:29]} 1-0

[Event "Mitropa Cup Open 2019"]
[Site "Radenci"]
[Date "2019.06.03"]
[Round "8.16"]
[White "Srbis, Jurica"]
[Black "Lodici, Lorenzo"]
[Result "1-0"]
[ECO "B18"]
[WhiteElo "2429"]
[BlackElo "2453"]
[Annotator "ChessBase"]
[PlyCount "89"]
[EventDate "2019.05.27"]
[EventType "team-tourn"]
[EventCountry "SLO"]
[SourceTitle "playchess.com"]
[Source "ChessBase"]
[SourceQuality "1"]
[WhiteTeam "Croatia"]
[BlackTeam "Italy"]
[WhiteTeamCountry "CRO"]
[BlackTeamCountry "ITA"]
[TimeControl "40/5400+30:1800+30"]

1. e4 {[%emt 0:00:00]} c6 {[%emt 0:00:00]} 2. d4 {[%emt 0:00:28]} d5 {[%emt 0:00:00]} 3. Nc3 {[%emt 0:00:25]} dxe4 {[%emt 0:00:00]} 4. Nxe4 {[%emt 0:00:05]} Bf5 {[%emt 0:00:00]} 5. Ng3 {[%emt 0:00:14]} Bg6 {[%emt 0:00:00]} 6. c3 {[%emt 0:00:07]} Nf6 {[%emt 0:04:11]} 7. Nh3 {[%emt 0:00:21]} e6 {[%emt 0:01:46]} 8. Nf4 {[%emt 0:00:12]} Nbd7 {[%emt 0:02:57]} 9. h4 {[%emt 0:06:17]} e5 {[%emt 0:01:49]} 10. Qe2 {[%emt 0:23:50]} Qe7 {[%emt 0:07:26]} 11. Nxg6 {[%emt 0:04:12]} hxg6 {[%emt 0:00:32]} 12. Be3 {[%emt 0:04:17]} Nd5 {[%emt 0:09:07]} 13. Bg5 {[%emt 0:01:14]} f6 {[%emt 0:01:36]} 14. Bd2 {[%emt 0:02:05]} exd4 {[%emt 0:02:20]} 15. cxd4 {[%emt 0:01:04]} Nb4 {[%emt 0:15:49]} 16. Bxb4 {[%emt 0:13:53]} Qxe2+ {[%emt 0:00:02]} 17. Nxe2 {[%emt 0:07:48]} Bxb4+ {[%emt 0:01:08]} 18. Nc3 {[%emt 0:00:07]} g5 {[%emt 0:06:38]} 19. h5 {[%emt 0:00:29]} Nb6 {[%emt 0:01:42]} 20. O-O-O {[%emt 0:01:26]} Bxc3 {[%emt 0:07:47]} 21. bxc3 {[%emt 0:00:04]} Nd5 {[%emt 0:00:12]} 22. Re1+ {[%emt 0:03:25]} Kf8 {[%emt 0:03:06]} 23. Kc2 {[%emt 0:06:05]} g6 {[%emt 0:04:17]} 24. h6 {[%emt 0:02:35]} Re8 {[%emt 0:03:12]} 25. Rxe8+ {[%emt 0:00:24]} Kxe8 {[%emt 0:00:02]} 26. Bc4 {[%emt 0:00:46]} Ne7 {[%emt 0:03:07]} 27. Be6 {[%emt 0:01:24]} Rh7 {[%emt 0:08:20]} 28. g4 {[%emt 0:00:27]} Kf8 {[%emt 0:01:58]} 29. Kd3 {[%emt 0:04:58]} Ng8 {[%emt 0:03:49]} 30. Bxg8 {[%emt 0:00:12]} Kxg8 {[%emt 0:00:00]} 31. a4 {[%emt 0:00:44]} Re7 {[%emt 0:03:53]} 32. h7+ {[%emt 0:01:03]} Kh8 {[%emt 0:00:00]} 33. Rh6 {[%emt 0:06:26]} Re6 {[%emt 0:01:55]} 34. a5 {[%emt 0:01:16]} Rd6 {[%emt 0:01:31]} 35. c4 {[%emt 0:01:15]} c5 {[%emt 0:02:55]} 36. d5 {[%emt 0:00:14]} Ra6 {[%emt 0:00:08]} 37. Ke4 {[%emt 0:00:51]} Rxa5 {[%emt 0:00:01]} 38. d6 {[%emt 0:00:50]} Ra2 {[%emt 0:00:01]} 39. Kd5 {[%emt 0:00:48]} Rd2+ {[%emt 0:04:01]} 40. Ke6 {[%emt 0:00:00]} b5 {[%emt 0:00:00]} 41. cxb5 {[%emt 0:01:07]} c4 42. d7 {[%emt 0:03:44]} c3 {[%emt 0:01:59]} 43. Rh1 {[%emt 0:00:10]} c2 {[%emt 0:00:13]} 44. Rc1 {[%emt 0:00:05]} Kxh7 {[%emt 0:01:03]} 45. Rxc2 {[%emt 0:01:47]} 1-0

[Event "Mitropa Cup Open 2019"]
[Site "Radenci"]
[Date "2019.06.03"]
[Round "8.19"]
[White "Di Nicolantonio, Lucas"]
[Black "Repka, Christopher"]
[Result "1/2-1/2"]
[ECO "C45"]
[WhiteElo "2379"]
[BlackElo "2482"]
[Annotator "ChessBase"]
[PlyCount "84"]
[EventDate "2019.05.27"]
[EventType "team-tourn"]
[EventCountry "SLO"]
[SourceTitle "playchess.com"]
[Source "ChessBase"]
[SourceQuality "1"]
[WhiteTeam "France"]
[BlackTeam "Slovakia"]
[WhiteTeamCountry "FRA"]
[BlackTeamCountry "SVK"]
[TimeControl "40/5400+30:1800+30"]

1. e4 {[%emt 0:00:00]} e5 {[%emt 0:00:00]} 2. Nf3 {[%emt 0:00:00]} Nc6 {[%emt 0:00:00]} 3. d4 {[%emt 0:00:00]} exd4 {[%emt 0:00:01]} 4. Nxd4 {[%emt 0:00:05]} Nf6 {[%emt 0:00:10]} 5. Nxc6 {[%emt 0:00:14]} bxc6 {[%emt 0:00:04]} 6. e5 {[%emt 0:00:12]} Qe7 {[%emt 0:00:06]} 7. Qe2 {[%emt 0:00:16]} Nd5 {[%emt 0:00:05]} 8. c4 {[%emt 0:00:34]} Ba6 {[%emt 0:00:04]} 9. Nd2 {[%emt 0:00:25]} g6 {[%emt 0:01:10]} 10. Nf3 {[%emt 0:00:51]} Nb6 {[%emt 0:00:04]} 11. b3 {[%emt 0:01:11]} Bg7 {[%emt 0:00:04]} 12. Bg5 {[%emt 0:02:07]} Qe6 {[%emt 0:00:04]} 13. O-O-O {[%emt 0:01:45]} O-O {[%emt 0:00:04]} 14. Qe3 {[%emt 0:03:34]} Rfe8 {[%emt 0:00:19]} 15. h4 {[%emt 0:01:23]} d5 {[%emt 0:03:07]} 16. exd6 {[%emt 0:02:37]} Qf5 {[%emt 0:07:22]} 17. Qd2 {[%emt 0:00:45]} Qc5 {[%emt 0:00:04]} 18. Be3 {[%emt 0:53:07]} Qa3+ {[%emt 0:22:49]} 19. Kb1 {[%emt 0:00:14]} Bxc4 {[%emt 0:02:36]} 20. Qc1 {[%emt 0:04:35]} Qxc1+ {[%emt 0:00:30]} 21. Rxc1 {[%emt 0:00:18]} Bd5 {[%emt 0:00:55]} 22. Bd3 {[%emt 0:07:54]} cxd6 {[%emt 0:00:06]} 23. h5 {[%emt 0:00:11]} Nd7 {[%emt 0:04:02]} 24. hxg6 {[%emt 0:06:14]} hxg6 {[%emt 0:00:16]} 25. Rh4 {[%emt 0:01:55]} a5 {[%emt 0:00:17]} 26. Bc4 {[%emt 0:01:29]} Bxc4 {[%emt 0:01:25]} 27. Rhxc4 {[%emt 0:00:15]} c5 {[%emt 0:00:03]} 28. Rd1 {[%emt 0:01:45]} d5 {[%emt 0:00:05]} 29. Rxd5 {[%emt 0:01:49]} Nb6 {[%emt 0:00:03]} 30. Rdxc5 {[%emt 0:00:17]} Nxc4 {[%emt 0:00:04]} 31. Rxc4 {[%emt 0:01:06]} Rac8 {[%emt 0:00:04]} 32. Nd2 {[%emt 0:03:00]} Rcd8 {[%emt 0:04:06]} 33. Kc2 {[%emt 0:00:24]} Rd5 {[%emt 0:00:06]} 34. g4 {[%emt 0:02:03]} Bf6 {[%emt 0:00:26]} 35. Ne4 {[%emt 0:01:03]} Bd8 {[%emt 0:00:14]} 36. a3 {[%emt 0:01:19]} Rde5 {[%emt 0:01:40]} 37. Kd3 {[%emt 0:00:22]} Be7 {[%emt 0:00:50]} 38. b4 {[%emt 0:01:27]} Rb8 {[%emt 0:00:03]} 39. Bf4 {[%emt 0:00:25]} Rd5+ {[%emt 0:00:12]} 40. Kc2 {[%emt 0:00:00]} Rbd8 {[%emt 0:00:00]} 41. Be3 {[%emt 0:04:27]} Rb8 {[%emt 0:04:16]} 42. Nc3 {[%emt 0:07:10]} Rd7 {[%emt 0:00:16]} 1/2-1/2